[Event "EYCC Girls-U14 2019"]
[Site "Bratislava"]
[Date "2019.08.02"]
[Round "1.17"]
[White "Sumarriva Paulin, Laura"]
[Black "Mroz, Lena"]
[Result "1-0"]
[ECO "A85"]
[WhiteElo "1861"]
[BlackElo "1587"]
[Annotator "NA"]
[PlyCount "71"]
[EventDate "2019.08.02"]
[EventType "swiss"]
[EventCountry "SVK"]
[SourceTitle "playchess.com"]
[Source "ChessBase"]
[SourceQuality "1"]
[TimeControl "40/5400+30:1800+30"]

1. d4 {[%emt 0:00:00]} f5 {[%emt 0:00:00]} 2. c4 {[%emt 0:00:00]} Nf6 {[%emt 0:00:00]} 3. Nc3 {[%emt 0:00:00]} e6 {[%emt 0:00:18]} 4. e3 {[%emt 0:00:53]} Bb4 {[%emt 0:02:16]} 5. Bd3 {[%emt 0:05:37]} O-O {[%emt 0:02:56]} 6. Nge2 {[%emt 0:02:23]} Nc6 {[%emt 0:04:08]} 7. O-O {[%emt 0:03:15]} Bxc3 {[%emt 0:18:36]} 8. Nxc3 {[%emt 0:19:57]} d6 {[%emt 0:01:56]} 9. a3 {[%emt 0:13:11]} a5 {[%emt 0:01:59]} 10. Rb1 {[%emt 0:11:51]} e5 {[%emt 0:03:35]} 11. d5 {[%emt 0:02:52]} Ne7 {[%emt 0:04:39]} 12. f4 {[%emt 0:03:02]} e4 {[%emt 0:09:17]} 13. Be2 {[%emt 0:00:27]} Qe8 {[%emt 0:01:59]} 14. Nb5 {[%emt 0:06:49]} Qd8 {[%emt 0:03:30]} 15. b4 {[%emt 0:04:09]} axb4 {[%emt 0:05:06]} 16. axb4 {[%emt 0:00:15]} Bd7 {[%emt 0:01:25]} 17. Nd4 {[%emt 0:06:14]} Kh8 {[%emt 0:06:23]} 18. Bb2 {[%emt 0:04:36]} Neg8 {[%emt 0:10:07]} 19. Qb3 {[%emt 0:05:34]} Qe7 {[%emt 0:07:57]} 20. Ra1 {[%emt 0:03:28]} Nh6 {[%emt 0:01:35]} 21. c5 {[%emt 0:01:12]} dxc5 {[%emt 0:05:14]} 22. bxc5 {[%emt 0:00:10]} Qf7 {[%emt 0:03:45]} 23. Rxa8 {[%emt 0:01:10]} Rxa8 {[%emt 0:00:22]} 24. Qxb7 {[%emt 0:02:02]} Qxd5 {[%emt 0:04:11]} 25. c6 {[%emt 0:02:16]} Re8 {[%emt 0:00:42]} 26. Qxc7 {[%emt 0:01:00]} Rc8 {[%emt 0:00:19]} 27. Qe5 {[%emt 0:00:33]} Be8 {[%emt 0:00:42]} 28. Qxd5 {[%emt 0:00:33]} Nxd5 {[%emt 0:00:13]} 29. Ne6 {[%emt 0:00:10]} Nf6 {[%emt 0:00:37]} 30. c7 {[%emt 0:00:26]} Bd7 {[%emt 0:00:39]} 31. Ba6 {[%emt 0:00:35]} Re8 {[%emt 0:00:25]} 32. Nd8 {[%emt 0:00:41]} Nd5 {[%emt 0:00:25]} 33. Rd1 {[%emt 0:00:32]} Nxc7 {[%emt 0:00:35]} 34. Rxd7 {[%emt 0:00:16]} Nxa6 {[%emt 0:00:32]} 35. Rxg7 {[%emt 0:00:42]} Rxd8 {[%emt 0:00:35]} 36. Rg6+ {[%emt 0:00:22]} 1-0

[Event "EYCC Girls-U14 2019"]
[Site "Bratislava"]
[Date "2019.08.02"]
[Round "1.18"]
[White "Fizerova, Lucie"]
[Black "Hakobyan, Astghik"]
[Result "0-1"]
[ECO "C00"]
[WhiteElo "1499"]
[BlackElo "1863"]
[Annotator "NA"]
[PlyCount "110"]
[EventDate "2019.08.02"]
[EventType "swiss"]
[EventCountry "SVK"]
[SourceTitle "playchess.com"]
[Source "ChessBase"]
[SourceQuality "1"]
[TimeControl "40/5400+30:1800+30"]

1. e4 {[%emt 0:00:00]} e6 {[%emt 0:00:00]} 2. d4 {[%emt 0:00:00]} d5 {[%emt 0:00:00]} 3. Bd3 {[%emt 0:00:00]} c5 {[%emt 0:00:59]} 4. exd5 {[%emt 0:00:00]} Qxd5 {[%emt 0:01:49]} 5. Nc3 {[%emt 0:03:19]} Qd8 {[%emt 0:08:58]} 6. Nf3 {[%emt 0:02:03]} Be7 {[%emt 0:04:35]} 7. O-O {[%emt 0:04:45]} Nf6 {[%emt 0:00:49]} 8. dxc5 {[%emt 0:03:06]} Bxc5 {[%emt 0:02:18]} 9. Bg5 {[%emt 0:01:53]} O-O {[%emt 0:01:12]} 10. Qd2 {[%emt 0:07:25]} Nbd7 {[%emt 0:04:08]} 11. Rad1 {[%emt 0:04:38]} Be7 {[%emt 0:08:28]} 12. Rfe1 {[%emt 0:07:23]} Nc5 {[%emt 0:04:29]} 13. Bc4 {[%emt 0:07:15]} Qb6 {[%emt 0:01:23]} 14. b3 {[%emt 0:07:27]} Bd7 {[%emt 0:04:33]} 15. Ne5 {[%emt 0:03:39]} Rfd8 {[%emt 0:08:15]} 16. Qe3 {[%emt 0:01:17]} Be8 {[%emt 0:01:52]} 17. Kh1 {[%emt 0:10:41]} Qa5 {[%emt 0:06:02]} 18. f4 {[%emt 0:04:17]} b5 {[%emt 0:06:05]} 19. Be2 {[%emt 0:02:16]} Rac8 {[%emt 0:03:10]} 20. Rxd8 {[%emt 0:06:11]} Bxd8 {[%emt 0:01:18]} 21. Rd1 {[%emt 0:02:27]} Nb7 {[%emt 0:09:59]} 22. Ne4 {[%emt 0:05:42]} Nxe4 {[%emt 0:06:05]} 23. Qxe4 {[%emt 0:00:49]} Nc5 {[%emt 0:00:31]} 24. Bxd8 {[%emt 0:02:13]} Rxd8 {[%emt 0:01:33]} 25. Qe3 {[%emt 0:00:52]} Rxd1+ {[%emt 0:03:06]} 26. Bxd1 {[%emt 0:00:09]} b4 {[%emt 0:00:54]} 27. Nc4 {[%emt 0:00:57]} Qc7 {[%emt 0:03:01]} 28. Kg1 {[%emt 0:02:01]} Bb5 {[%emt 0:04:21]} 29. Qe5 {[%emt 0:02:07]} Qxe5 {[%emt 0:00:37]} 30. Nxe5 {[%emt 0:00:07]} Ne4 {[%emt 0:00:28]} 31. Bf3 {[%emt 0:01:33]} Nc3 {[%emt 0:01:45]} 32. Bc6 {[%emt 0:02:32]} Be2 {[%emt 0:01:09]} 33. Bf3 {[%emt 0:00:24]} Bb5 {[%emt 0:01:40]} 34. Bc6 {[%emt 0:00:07]} Be2 {[%emt 0:00:03]} 35. Bf3 {[%emt 0:00:04]} Bxf3 {[%emt 0:00:38]} 36. gxf3 {[%emt 0:00:23]} Nxa2 {[%emt 0:01:08]} 37. Nc6 {[%emt 0:00:12]} a6 38. Kf2 {[%emt 0:00:18]} Kf8 {[%emt 0:00:49]} 39. Nb8 {[%emt 0:00:21]} Ke7 {[%emt 0:00:07]} 40. Nxa6 {[%emt 0:00:00]} Kd6 {[%emt 0:00:00]} 41. Ke3 {[%emt 0:02:10]} Kc6 {[%emt 0:05:30]} 42. Nb8+ {[%emt 0:00:38]} Kc7 {[%emt 0:01:56]} 43. Na6+ {[%emt 0:00:06]} Kb6 {[%emt 0:01:33]} 44. Nb8 {[%emt 0:00:12]} f6 {[%emt 0:01:42]} 45. Nd7+ {[%emt 0:00:24]} Kc6 {[%emt 0:00:16]} 46. Nf8 {[%emt 0:00:29]} Kd6 {[%emt 0:00:13]} 47. f5 {[%emt 0:03:02]} exf5 {[%emt 0:00:33]} 48. Kf4 {[%emt 0:00:09]} Ke7 {[%emt 0:01:13]} 49. Nxh7 {[%emt 0:00:11]} Kf7 {[%emt 0:00:28]} 50. Kxf5 {[%emt 0:00:12]} g6+ {[%emt 0:00:07]} 51. Kg4 {[%emt 0:00:37]} Kg7 {[%emt 0:00:11]} 52. Ng5 {[%emt 0:00:13]} fxg5 {[%emt 0:00:06]} 53. Kxg5 {[%emt 0:00:09]} Nc3 {[%emt 0:00:11]} 54. h4 {[%emt 0:00:07]} Ne2 {[%emt 0:00:29]} 55. f4 {[%emt 0:00:29]} Nd4 {[%emt 0:00:11]} 0-1

[Event "EYCC Girls-U14 2019"]
[Site "Bratislava"]
[Date "2019.08.02"]
[Round "1.19"]
[White "Sovina, Maria"]
[Black "Trasakova, Adela"]
[Result "1-0"]
[ECO "D11"]
[WhiteElo "1757"]
[BlackElo "1575"]
[Annotator "NA"]
[PlyCount "69"]
[EventDate "2019.08.02"]
[EventType "swiss"]
[EventCountry "SVK"]
[SourceTitle "playchess.com"]
[Source "ChessBase"]
[SourceQuality "1"]
[TimeControl "40/5400+30:1800+30"]

1. d4 {[%emt 0:00:00]} d5 {[%emt 0:00:00]} 2. c4 {[%emt 0:00:00]} c6 {[%emt 0:00:00]} 3. Nf3 {[%emt 0:00:00]} Nf6 {[%emt 0:00:00]} 4. e3 {[%emt 0:00:00]} e6 {[%emt 0:00:11]} 5. b3 {[%emt 0:00:00]} Bd6 {[%emt 0:01:02]} 6. Nc3 {[%emt 0:01:39]} Nbd7 {[%emt 0:00:40]} 7. Bb2 {[%emt 0:00:42]} O-O {[%emt 0:01:01]} 8. Bd3 {[%emt 0:04:52]} Re8 {[%emt 0:03:58]} 9. O-O {[%emt 0:07:21]} dxc4 {[%emt 0:02:00]} 10. Bxc4 {[%emt 0:10:19]} e5 {[%emt 0:02:07]} 11. d5 {[%emt 0:06:54]} Nb6 {[%emt 0:08:46]} 12. dxc6 {[%emt 0:05:13]} bxc6 {[%emt 0:03:52]} 13. Be2 {[%emt 0:02:51]} Qc7 {[%emt 0:06:51]} 14. Rc1 {[%emt 0:04:21]} a6 {[%emt 0:03:49]} 15. e4 {[%emt 0:04:43]} Bg4 {[%emt 0:03:50]} 16. Nd2 {[%emt 0:05:46]} Bxe2 {[%emt 0:01:45]} 17. Qxe2 {[%emt 0:00:19]} Red8 {[%emt 0:03:15]} 18. Nc4 {[%emt 0:06:23]} Nxc4 {[%emt 0:02:05]} 19. Qxc4 {[%emt 0:00:04]} Nh5 {[%emt 0:03:37]} 20. Ne2 {[%emt 0:04:18]} Rdc8 {[%emt 0:03:48]} 21. Rc2 {[%emt 0:03:26]} Nf4 {[%emt 0:04:42]} 22. Nxf4 {[%emt 0:06:48]} exf4 {[%emt 0:00:09]} 23. f3 {[%emt 0:02:06]} Be5 {[%emt 0:04:24]} 24. Bxe5 {[%emt 0:03:37]} Qxe5 {[%emt 0:00:02]} 25. Qc5 {[%emt 0:00:58]} Qe6 {[%emt 0:03:09]} 26. Rd1 {[%emt 0:02:27]} Rd8 {[%emt 0:04:27]} 27. Rxd8+ {[%emt 0:03:47]} Rxd8 {[%emt 0:00:02]} 28. Qxc6 {[%emt 0:00:09]} Qe5 {[%emt 0:01:02]} 29. Qc3 {[%emt 0:01:30]} Qd6 {[%emt 0:01:48]} 30. h3 {[%emt 0:01:41]} Qg6 {[%emt 0:02:01]} 31. Rd2 {[%emt 0:01:50]} Rb8 {[%emt 0:02:03]} 32. Qc7 {[%emt 0:01:10]} Re8 {[%emt 0:01:23]} 33. Qxf4 {[%emt 0:01:54]} Qb6+ {[%emt 0:01:27]} 34. Kh2 {[%emt 0:00:29]} Rc8 {[%emt 0:00:29]} 35. Qd6 {[%emt 0:00:33]} 1-0

[Event "EYCC Girls-U14 2019"]
[Site "Bratislava"]
[Date "2019.08.02"]
[Round "1.20"]
[White "Kucharska, Helena"]
[Black "Sevcikova, Lucia"]
[Result "0-1"]
[ECO "B02"]
[WhiteElo "1543"]
[BlackElo "1800"]
[Annotator "NA"]
[PlyCount "37"]
[EventDate "2019.08.02"]
[EventType "swiss"]
[EventCountry "SVK"]
[SourceTitle "playchess.com"]
[Source "ChessBase"]
[SourceQuality "1"]
[TimeControl "40/5400+30:1800+30"]

1. e4 {[%emt 0:00:00]} Nf6 {[%emt 0:00:00]} 2. Nc3 {[%emt 0:00:00]} d5 {[%emt 0:00:00]} 3. exd5 {[%emt 0:00:08]} Nxd5 {[%emt 0:00:00]} 4. Bc4 {[%emt 0:00:23]} c6 {[%emt 0:00:57]} 5. Qf3 {[%emt 0:20:22]} e6 {[%emt 0:04:02]} 6. Nge2 {[%emt 0:05:13]} Nd7 {[%emt 0:02:25]} 7. d4 {[%emt 0:04:45]} N7f6 {[%emt 0:03:37]} 8. Bg5 {[%emt 0:04:44]} Be7 {[%emt 0:00:59]} 9. O-O-O {[%emt 0:13:22]} Qa5 {[%emt 0:03:52]} 10. Bd2 {[%emt 0:11:07]} Qc7 {[%emt 0:04:42]} 11. g4 {[%emt 0:07:36]} b5 {[%emt 0:04:30]} 12. Bd3 {[%emt 0:07:39]} b4 {[%emt 0:05:00]} 13. Ne4 {[%emt 0:03:12]} Nxe4 {[%emt 0:03:45]} 14. Bxe4 {[%emt 0:02:12]} Qa5 {[%emt 0:06:23]} 15. Qb3 {[%emt 0:08:48]} Ba6 {[%emt 0:06:42]} 16. c4 {[%emt 0:04:03]} bxc3 {[%emt 0:02:06]} 17. Nxc3 {[%emt 0:00:16]} Qb6 {[%emt 0:01:16]} 18. Qc2 {[%emt 0:03:08]} Rb8 {[%emt 0:04:56]} 19. Be3 {[%emt 0:02:32]} 0-1

[Event "EYCC Girls-U14 2019"]
[Site "Bratislava"]
[Date "2019.08.02"]
[Round "1.21"]
[White "Nadzamova, Viktoria"]
[Black "Palczert, Hajnalka"]
[Result "1-0"]
[ECO "B30"]
[WhiteElo "1854"]
[BlackElo "1425"]
[Annotator "NA"]
[PlyCount "53"]
[EventDate "2019.08.02"]
[EventType "swiss"]
[EventCountry "SVK"]
[SourceTitle "playchess.com"]
[Source "ChessBase"]
[SourceQuality "1"]
[TimeControl "40/5400+30:1800+30"]

1. e4 {[%emt 0:00:00]} c5 {[%emt 0:00:00]} 2. Nf3 {[%emt 0:00:00]} Nc6 {[%emt 0:00:29]} 3. Bb5 {[%emt 0:00:00]} Nd4 {[%emt 0:02:09]} 4. Nxd4 {[%emt 0:02:22]} cxd4 {[%emt 0:00:13]} 5. O-O {[%emt 0:02:09]} Nf6 {[%emt 0:10:29]} 6. e5 {[%emt 0:02:07]} Nd5 {[%emt 0:00:51]} 7. e6 {[%emt 0:07:47]} Nf6 {[%emt 0:02:34]} 8. exf7+ {[%emt 0:01:34]} Kxf7 {[%emt 0:02:00]} 9. c3 {[%emt 0:04:46]} Qb6 {[%emt 0:05:03]} 10. Be2 {[%emt 0:02:53]} g6 {[%emt 0:01:26]} 11. cxd4 {[%emt 0:01:15]} Qxd4 {[%emt 0:02:20]} 12. Nc3 {[%emt 0:01:16]} Bg7 {[%emt 0:01:19]} 13. Nb5 {[%emt 0:08:39]} Qb6 {[%emt 0:04:46]} 14. d4 {[%emt 0:02:58]} d5 {[%emt 0:06:27]} 15. Bf4 {[%emt 0:04:12]} Bf5 {[%emt 0:06:39]} 16. Bc7 {[%emt 0:10:18]} Qe6 {[%emt 0:05:01]} 17. Be5 {[%emt 0:02:02]} Qd7 {[%emt 0:01:36]} 18. Rc1 {[%emt 0:10:19]} Rhc8 {[%emt 0:02:44]} 19. Nc7 {[%emt 0:06:02]} Rab8 {[%emt 0:01:16]} 20. Bb5 {[%emt 0:02:52]} Qd8 {[%emt 0:01:32]} 21. Qf3 {[%emt 0:04:48]} a6 {[%emt 0:03:47]} 22. Ba4 {[%emt 0:04:32]} Bh6 {[%emt 0:04:30]} 23. Rc5 {[%emt 0:02:34]} Be4 {[%emt 0:04:20]} 24. Qh3 {[%emt 0:01:04]} Bg7 {[%emt 0:06:30]} 25. Ne6 {[%emt 0:02:18]} Qh8 {[%emt 0:03:17]} 26. Ng5+ {[%emt 0:00:14]} Kf8 {[%emt 0:04:16]} 27. Rxc8+ {[%emt 0:00:35]} 1-0

[Event "EYCC Girls-U14 2019"]
[Site "Bratislava"]
[Date "2019.08.02"]
[Round "1.22"]
[White "Vetokhina, Sofia"]
[Black "Hrebenshchykova, Yelyzaveta"]
[Result "0-1"]
[ECO "E73"]
[WhiteElo "1536"]
[BlackElo "1955"]
[Annotator "NA"]
[PlyCount "56"]
[EventDate "2019.08.02"]
[EventType "swiss"]
[EventCountry "SVK"]
[SourceTitle "playchess.com"]
[Source "ChessBase"]
[SourceQuality "1"]
[TimeControl "40/5400+30:1800+30"]

1. d4 {[%emt 0:00:00]} Nf6 {[%emt 0:00:00]} 2. c4 {[%emt 0:00:00]} g6 {[%emt 0:00:00]} 3. Nc3 {[%emt 0:00:00]} Bg7 {[%emt 0:00:00]} 4. e4 {[%emt 0:00:00]} d6 {[%emt 0:00:05]} 5. Be2 {[%emt 0:00:24]} O-O {[%emt 0:00:10]} 6. Bg5 {[%emt 0:00:31]} Nbd7 {[%emt 0:01:42]} 7. Nf3 {[%emt 0:01:09]} h6 {[%emt 0:05:29]} 8. Be3 {[%emt 0:02:43]} e5 {[%emt 0:01:58]} 9. d5 {[%emt 0:02:35]} Ng4 {[%emt 0:03:40]} 10. Qd2 {[%emt 0:08:34]} f5 {[%emt 0:06:36]} 11. h3 {[%emt 0:08:11]} Nxe3 {[%emt 0:00:16]} 12. Qxe3 {[%emt 0:05:29]} Nc5 {[%emt 0:05:18]} 13. O-O-O {[%emt 0:14:58]} a6 {[%emt 0:25:05]} 14. g4 {[%emt 0:10:46]} b5 {[%emt 0:07:29]} 15. gxf5 {[%emt 0:06:40]} gxf5 {[%emt 0:02:58]} 16. Nd2 {[%emt 0:04:11]} b4 {[%emt 0:05:27]} 17. Ncb1 {[%emt 0:01:09]} fxe4 {[%emt 0:02:36]} 18. Rhg1 {[%emt 0:02:43]} Qh4 {[%emt 0:03:20]} 19. Rg3 {[%emt 0:03:13]} Bf5 {[%emt 0:10:49]} 20. Rdg1 {[%emt 0:00:51]} Rf7 {[%emt 0:00:10]} 21. Bg4 {[%emt 0:01:57]} Bh7 {[%emt 0:06:14]} 22. Be6 {[%emt 0:02:03]} Nxe6 {[%emt 0:00:08]} 23. dxe6 {[%emt 0:00:14]} Re7 {[%emt 0:00:03]} 24. Rg4 {[%emt 0:00:29]} Qf6 {[%emt 0:00:20]} 25. Nxe4 {[%emt 0:01:52]} Qxe6 {[%emt 0:00:08]} 26. Ng3 {[%emt 0:01:22]} Kh8 {[%emt 0:00:56]} 27. Nh5 {[%emt 0:00:37]} Qf5 {[%emt 0:00:39]} 28. Qe2 {[%emt 0:01:44]} Qxb1+ 0-1

[Event "EYCC Girls-U14 2019"]
[Site "Bratislava"]
[Date "2019.08.02"]
[Round "1.23"]
[White "Zeliantsova, Kseniya"]
[Black "Mikova, Miriam"]
[Result "1/2-1/2"]
[ECO "B10"]
[WhiteElo "1907"]
[BlackElo "1420"]
[Annotator "NA"]
[PlyCount "76"]
[EventDate "2019.08.02"]
[EventType "swiss"]
[EventCountry "SVK"]
[SourceTitle "playchess.com"]
[Source "ChessBase"]
[SourceQuality "1"]
[TimeControl "40/5400+30:1800+30"]

1. e4 {[%emt 0:00:00]} c6 {[%emt 0:00:00]} 2. Nf3 {[%emt 0:00:19]} d5 {[%emt 0:00:15]} 3. Nc3 {[%emt 0:00:12]} dxe4 {[%emt 0:00:30]} 4. Nxe4 {[%emt 0:00:10]} Nf6 {[%emt 0:00:53]} 5. Nxf6+ {[%emt 0:00:28]} exf6 {[%emt 0:00:12]} 6. d4 {[%emt 0:02:12]} Bd6 {[%emt 0:01:06]} 7. Bd3 {[%emt 0:02:04]} O-O {[%emt 0:01:11]} 8. O-O {[%emt 0:01:32]} Re8 {[%emt 0:01:16]} 9. h3 {[%emt 0:04:41]} Nd7 {[%emt 0:01:16]} 10. c4 {[%emt 0:05:25]} Nf8 {[%emt 0:01:54]} 11. Qc2 {[%emt 0:02:19]} Be6 {[%emt 0:02:57]} 12. Bf5 {[%emt 0:24:36]} Qd7 {[%emt 0:07:10]} 13. Bxe6 {[%emt 0:06:19]} Nxe6 {[%emt 0:13:53]} 14. Qc3 {[%emt 0:05:52]} Rad8 {[%emt 0:05:33]} 15. Be3 {[%emt 0:02:04]} Bf4 {[%emt 0:04:21]} 16. Rad1 {[%emt 0:02:34]} Bxe3 {[%emt 0:11:28]} 17. Qxe3 {[%emt 0:08:23]} Ng5 {[%emt 0:12:17]} 18. Qa3 {[%emt 0:02:29]} Nxf3+ {[%emt 0:04:48]} 19. Qxf3 {[%emt 0:00:06]} Re6 {[%emt 0:00:55]} 20. d5 {[%emt 0:08:16]} Rd6 {[%emt 0:12:36]} 21. Rd4 {[%emt 0:02:29]} cxd5 {[%emt 0:01:57]} 22. Rfd1 {[%emt 0:00:24]} Qe7 {[%emt 0:03:18]} 23. Qa3 {[%emt 0:03:44]} a6 {[%emt 0:03:28]} 24. Qa5 {[%emt 0:08:43]} h6 {[%emt 0:02:15]} 25. Rxd5 {[%emt 0:01:22]} Rxd5 {[%emt 0:02:37]} 26. cxd5 {[%emt 0:01:38]} Rd6 {[%emt 0:01:19]} 27. Qc5 {[%emt 0:01:14]} Qd8 {[%emt 0:00:52]} 28. Rd3 {[%emt 0:03:00]} Kh8 {[%emt 0:01:26]} 29. Qc4 {[%emt 0:00:52]} Kg8 {[%emt 0:00:39]} 30. a4 {[%emt 0:00:23]} Qd7 {[%emt 0:00:46]} 31. a5 {[%emt 0:00:38]} Qd8 {[%emt 0:00:38]} 32. b4 {[%emt 0:00:05]} Qe7 {[%emt 0:01:19]} 33. Qc8+ {[%emt 0:00:44]} Rd8 {[%emt 0:00:39]} 34. Re3 {[%emt 0:01:03]} Qd7 {[%emt 0:00:42]} 35. Qxd7 {[%emt 0:00:30]} Rxd7 {[%emt 0:00:01]} 36. Re8+ {[%emt 0:00:05]} Kh7 {[%emt 0:00:03]} 37. d6 {[%emt 0:00:21]} Rxd6 {[%emt 0:00:43]} 38. Re7 {[%emt 0:00:42]} b5 {[%emt 0:00:31]} 1/2-1/2

[Event "EYCC Girls-U14 2019"]
[Site "Bratislava"]
[Date "2019.08.02"]
[Round "1.24"]
[White "Fajtakova, Silvia"]
[Black "Tsotsonava, Elene"]
[Result "0-1"]
[ECO "B40"]
[WhiteElo "1514"]
[BlackElo "1878"]
[Annotator "NA"]
[PlyCount "64"]
[EventDate "2019.08.02"]
[EventType "swiss"]
[EventCountry "SVK"]
[SourceTitle "playchess.com"]
[Source "ChessBase"]
[SourceQuality "1"]
[TimeControl "40/5400+30:1800+30"]

1. e4 {[%emt 0:00:00]} c5 {[%emt 0:00:00]} 2. Nf3 {[%emt 0:00:00]} e6 {[%emt 0:00:09]} 3. d4 {[%emt 0:02:03]} cxd4 {[%emt 0:00:18]} 4. Qxd4 {[%emt 0:00:35]} Nc6 {[%emt 0:01:19]} 5. Qd1 {[%emt 0:00:34]} Qc7 {[%emt 0:06:39]} 6. Bd3 {[%emt 0:05:11]} Nf6 {[%emt 0:02:41]} 7. O-O {[%emt 0:02:29]} Be7 {[%emt 0:00:27]} 8. Re1 {[%emt 0:02:50]} d6 {[%emt 0:00:50]} 9. Nbd2 {[%emt 0:02:28]} O-O {[%emt 0:01:57]} 10. Nf1 {[%emt 0:04:37]} a6 {[%emt 0:03:38]} 11. Bg5 {[%emt 0:05:13]} h6 {[%emt 0:04:29]} 12. Bc1 {[%emt 0:09:54]} b5 {[%emt 0:03:27]} 13. b3 {[%emt 0:02:51]} Bb7 {[%emt 0:02:07]} 14. Bb2 {[%emt 0:02:14]} Rfd8 {[%emt 0:07:59]} 15. Qc1 {[%emt 0:10:46]} Rac8 {[%emt 0:08:14]} 16. h3 {[%emt 0:21:04]} d5 {[%emt 0:07:08]} 17. exd5 {[%emt 0:03:21]} Nxd5 {[%emt 0:00:45]} 18. Ng3 {[%emt 0:15:40]} Ncb4 {[%emt 0:06:06]} 19. Rd1 {[%emt 0:06:48]} Nxd3 {[%emt 0:07:52]} 20. cxd3 {[%emt 0:00:22]} Qb6 {[%emt 0:02:47]} 21. Qd2 {[%emt 0:00:44]} Bb4 {[%emt 0:01:45]} 22. Qe2 {[%emt 0:00:17]} Bc3 {[%emt 0:01:01]} 23. Rab1 {[%emt 0:00:55]} Bxb2 {[%emt 0:00:40]} 24. Qxb2 {[%emt 0:00:14]} Nc3 {[%emt 0:00:18]} 25. Nh5 {[%emt 0:00:45]} Bxf3 {[%emt 0:02:13]} 26. gxf3 {[%emt 0:00:17]} e5 {[%emt 0:02:43]} 27. Rf1 {[%emt 0:00:45]} Nxb1 {[%emt 0:00:46]} 28. Qxe5 {[%emt 0:00:23]} Qg6+ {[%emt 0:00:08]} 29. Ng3 {[%emt 0:00:27]} Nd2 {[%emt 0:00:08]} 30. Qe2 {[%emt 0:00:33]} Nxf1 {[%emt 0:00:06]} 31. Kxf1 {[%emt 0:00:14]} Qxd3 {[%emt 0:00:11]} 32. Qxd3 {[%emt 0:00:15]} Rxd3 {[%emt 0:00:05]} 0-1

[Event "EYCC Girls-U14 2019"]
[Site "Bratislava"]
[Date "2019.08.03"]
[Round "2.1"]
[White "Kozachenko, Maria"]
[Black "Yakimova, Mariya"]
[Result "0-1"]
[ECO "B51"]
[WhiteElo "1865"]
[BlackElo "2250"]
[Annotator "ChessBase"]
[PlyCount "162"]
[EventDate "2019.08.02"]
[EventType "swiss"]
[EventCountry "SVK"]
[SourceTitle "playchess.com"]
[Source "ChessBase"]
[SourceQuality "1"]
[TimeControl "40/5400+30:1800+30"]

1. e4 {[%emt 0:00:00]} c5 {[%emt 0:00:00]} 2. Nf3 {[%emt 0:00:00]} d6 {[%emt 0:00:00]} 3. Bb5+ {[%emt 0:00:00]} Nc6 {[%emt 0:00:00]} 4. O-O {[%emt 0:00:02]} Bd7 {[%emt 0:00:00]} 5. c3 {[%emt 0:00:10]} Nf6 {[%emt 0:00:00]} 6. Re1 {[%emt 0:00:21]} a6 {[%emt 0:00:06]} 7. Ba4 {[%emt 0:00:15]} b5 {[%emt 0:00:06]} 8. Bc2 {[%emt 0:00:24]} e5 {[%emt 0:01:20]} 9. d4 {[%emt 0:01:23]} Be7 {[%emt 0:14:42]} 10. h3 {[%emt 0:01:23]} O-O {[%emt 0:01:02]} 11. d5 {[%emt 0:00:49]} Na5 {[%emt 0:01:27]} 12. b3 {[%emt 0:01:09]} Qc7 {[%emt 0:04:51]} 13. Be3 {[%emt 0:04:34]} c4 {[%emt 0:03:17]} 14. b4 {[%emt 0:03:04]} Nb7 {[%emt 0:00:09]} 15. Nbd2 {[%emt 0:01:19]} a5 {[%emt 0:00:36]} 16. a3 {[%emt 0:01:32]} Ra6 {[%emt 0:02:20]} 17. Qb1 {[%emt 0:03:25]} Rfa8 {[%emt 0:00:34]} 18. Qb2 {[%emt 0:01:21]} Qc8 {[%emt 0:00:54]} 19. Nf1 {[%emt 0:05:20]} Ne8 {[%emt 0:07:38]} 20. N3d2 {[%emt 0:08:00]} h6 {[%emt 0:03:46]} 21. Reb1 {[%emt 0:07:16]} axb4 {[%emt 0:01:46]} 22. axb4 {[%emt 0:01:01]} Nd8 {[%emt 0:00:13]} 23. Rxa6 {[%emt 0:11:44]} Qxa6 {[%emt 0:00:23]} 24. f3 {[%emt 0:01:55]} Nf6 {[%emt 0:03:42]} 25. Ng3 {[%emt 0:03:24]} Nh7 {[%emt 0:08:59]} 26. Ndf1 {[%emt 0:03:07]} Bg5 {[%emt 0:01:52]} 27. Bf2 {[%emt 0:02:01]} Nf6 {[%emt 0:01:26]} 28. Ne3 {[%emt 0:08:04]} g6 {[%emt 0:01:38]} 29. Bd1 {[%emt 0:02:56]} h5 {[%emt 0:16:34]} 30. Nc2 {[%emt 0:05:45]} Qc8 {[%emt 0:02:01]} 31. Ra1 {[%emt 0:04:45]} Rxa1 {[%emt 0:00:30]} 32. Nxa1 {[%emt 0:03:36]} h4 {[%emt 0:00:27]} 33. Nh1 {[%emt 0:03:48]} Nh5 {[%emt 0:00:29]} 34. Qe2 {[%emt 0:01:28]} Nf4 {[%emt 0:01:20]} 35. Qf1 {[%emt 0:00:57]} Nd3 {[%emt 0:01:01]} 36. Qe2 {[%emt 0:01:16]} Nxf2 {[%emt 0:00:36]} 37. Qxf2 {[%emt 0:01:04]} Qa6 {[%emt 0:02:06]} 38. Qb2 {[%emt 0:03:24]} f5 {[%emt 0:03:01]} 39. Nc2 {[%emt 0:01:55]} Nf7 {[%emt 0:01:41]} 40. Kf1 {[%emt 0:00:00]} Bf4 {[%emt 0:00:00]} 41. Qa3 {[%emt 0:04:21]} Qc8 {[%emt 0:04:12]} 42. Nf2 {[%emt 0:03:18]} Ng5 {[%emt 0:00:58]} 43. Ne1 {[%emt 0:02:03]} Be3 {[%emt 0:01:31]} 44. Bc2 {[%emt 0:02:31]} Qb7 {[%emt 0:17:55]} 45. Nd1 {[%emt 0:05:22]} Bf4 {[%emt 0:02:30]} 46. Qa5 {[%emt 0:02:33]} Nf7 {[%emt 0:03:07]} 47. Ke2 {[%emt 0:01:30]} Kg7 {[%emt 0:02:46]} 48. Ne3 {[%emt 0:02:32]} Kf6 {[%emt 0:00:58]} 49. Nf1 {[%emt 0:01:47]} Bh6 {[%emt 0:01:29]} 50. Bb1 {[%emt 0:02:06]} Bg5 {[%emt 0:01:58]} 51. Nc2 {[%emt 0:02:15]} Kg7 {[%emt 0:00:52]} 52. Nce3 {[%emt 0:01:03]} Bd8 {[%emt 0:00:12]} 53. Qa2 {[%emt 0:00:28]} Kf6 {[%emt 0:01:01]} 54. Qc2 {[%emt 0:00:46]} Qc8 {[%emt 0:00:19]} 55. Ke1 {[%emt 0:00:57]} Bb6 {[%emt 0:00:18]} 56. Qe2 {[%emt 0:03:01]} Qh8 {[%emt 0:01:44]} 57. Qa2 {[%emt 0:02:24]} Qh6 {[%emt 0:02:42]} 58. Qd2 {[%emt 0:00:26]} Ng5 {[%emt 0:02:31]} 59. Bc2 {[%emt 0:01:32]} Nf7 {[%emt 0:00:50]} 60. Bb1 {[%emt 0:01:13]} Qf4 {[%emt 0:00:09]} 61. Nd1 {[%emt 0:00:33]} Ng5 {[%emt 0:00:30]} 62. Qxf4 {[%emt 0:00:16]} exf4 {[%emt 0:00:03]} 63. Ke2 {[%emt 0:00:39]} fxe4 {[%emt 0:03:47]} 64. fxe4 {[%emt 0:00:05]} f3+ {[%emt 0:00:35]} 65. gxf3 {[%emt 0:00:18]} Nxh3 {[%emt 0:00:18]} 66. Nde3 {[%emt 0:01:04]} Ke5 {[%emt 0:01:34]} 67. Bc2 {[%emt 0:01:07]} Kf6 {[%emt 0:03:48]} 68. Bd1 {[%emt 0:01:29]} Kg5 {[%emt 0:00:22]} 69. Bc2 {[%emt 0:00:51]} Bd8 {[%emt 0:00:26]} 70. Nh2 {[%emt 0:01:03]} Bf6 {[%emt 0:00:26]} 71. Kd2 {[%emt 0:00:31]} Kf4 {[%emt 0:01:18]} 72. e5 {[%emt 0:00:50]} Bxe5 {[%emt 0:00:03]} 73. Nef1 {[%emt 0:00:49]} Bf5 {[%emt 0:01:37]} 74. Bd1 {[%emt 0:00:26]} Ng1 {[%emt 0:00:39]} 75. Ke1 {[%emt 0:00:44]} Bxc3+ {[%emt 0:00:14]} 76. Kf2 {[%emt 0:00:05]} Nh3+ {[%emt 0:00:23]} 77. Kg2 {[%emt 0:00:13]} Bxb4 {[%emt 0:00:23]} 78. Ng4 {[%emt 0:00:20]} Bxg4 {[%emt 0:00:24]} 79. fxg4 {[%emt 0:00:06]} Ng5 {[%emt 0:00:16]} 80. Nh2 {[%emt 0:00:29]} h3+ {[%emt 0:00:27]} 81. Kf2 {[%emt 0:00:21]} Bc5+ {[%emt 0:00:05]} 0-1